Cogmind - Beta 14 @@@ ROGUE MODE // 2024.08.20 @ 11:49:47 Player: TheProctologist Result: Self-destructed Performance ------------- Evolutions (2) 1000 Regions Visited (8) 1600 Robots Destroyed (123) 615 Value Destroyed (4277) 4277 Prototype IDs (1) 20 Alien Tech Used (0) 0 Bonus (1937) 1937 TOTAL SCORE: 9449 Bonus ------- High Alert Combat Kills 827 Follower Combat Kills 110 Entered Garrisons 200 Used RIF Installer 500 Aligned with FarCom 300 Cogmind --------- Core Integrity 266/550 Matter 270/300 Energy 100/100 System Corruption 6% Temperature Cool (9) Movement Core (450) Ox8 Location -8/Materials Parts ------- > --- POWER (1) -------- (None) > --- PROPULSION (3) --- (None) > --- UTILITY (3) ------ Large Storage Unit Target Analyzer Relay Coupler [Duelist] (8) > --- WEAPON (4) ------- Remote Datajack Powered Hammer > --- INVENTORY (15) --- Deuterium Engine Light Treads Light Treads Improved Heat Sink Actuator Array Hardened Medium Armor Plating Relay Coupler [NC] (28) Relay Coupler [Swarmer] (40) Relay Coupler [Cutter] (21) Relay Coupler [Heavy] (10) Powered Hammer Longsword +1 Proton Bomb Trap Proton Bomb Trap Peak State ------------ > --- POWER ------------ Light Nuclear Core > --- PROPULSION ------- Light Treads Light Treads Light Treads > --- UTILITY ---------- Large Storage Unit Target Analyzer Hardened Medium Armor Plating > --- WEAPON ----------- Powered Hammer Powered Hammer Powered Hammer Longsword +1 > --- INVENTORY -------- Deuterium Engine Light Nuclear Core Light Treads Light Treads Improved Heat Sink Actuator Array Relay Coupler [NC] Relay Coupler [Swarmer] Relay Coupler [Cutter] Relay Coupler [Duelist] Relay Coupler [Heavy] Remote Datajack Powered Hammer Proton Bomb Trap Proton Bomb Trap [Rating: 37] Favorites ----------- Power Light Nuclear Core Engine Improved Ion Engine Power Core Light Nuclear Core Propulsion Light Treads Treads Light Treads Leg Aluminum Leg Utility Large Storage Unit Device Structural Scanner Storage Large Storage Unit Processor Target Analyzer Hackware Relay Coupler [Duelist] Protection Light Armor Plating Weapon Maul Energy Gun EM Pulse Gun Ballistic Gun Assault Rifle Special Weapon Remote Datajack Impact Weapon Maul Slashing Weapon Katana Build | -11 -10 -9 -9 -9 -8 -8 -8 -8 ------- Run | Yrd Mat Mat Min Exi Min Mat Gar Mat Slots Evolved 4 | . . 2 . . . 2 . . Power . | . . . . . . . . . Propulsion 1 | . . . . . . 1 . . Utility 1 | . . 1 . . . . . . Weapon 2 | . . 1 . . . 1 . . Parts Attached 81 | 7 9 27 . 1 . 7 14 16 Power 7 | 1 . 3 . . . 1 1 1 Engine 4 | 1 . 3 . . . . . . Core 3 | . . . . . . 1 1 1 Reactor . | . . . . . . . . . Propulsion 36 | 2 6 12 . . . 4 6 6 Treads 31 | 2 4 11 . . . 3 5 6 Leg 5 | . 2 1 . . . 1 1 . Wheel . | . . . . . . . . . Hover . | . . . . . . . . . Flight . | . . . . . . . . . Utility 17 | 2 2 4 . . . 1 5 3 Device 3 | 1 1 1 . . . . . . Storage 2 | 1 1 . . . . . . . Processor 1 | . . . . . . . 1 . Hackware 1 | . . . . . . . . 1 Protection 10 | . . 3 . . . 1 4 2 Artifact . | . . . . . . . . . Weapon 21 | 2 1 8 . 1 . 1 2 6 Energy Gun 1 | 1 . . . . . . . . Energy Cannon . | . . . . . . . . . Ballistic Gun 3 | 1 1 1 . . . . . . Ballistic Cannon . | . . . . . . . . . Launcher . | . . . . . . . . . Special Weapon 2 | . . . . . . . 1 1 Impact Weapon 11 | . . 5 . . . . 1 5 Slashing Weapon 4 | . . 2 . 1 . 1 . . Piercing Weapon . | . . . . . . . . . Special Melee Weapon . | . . . . . . . . . Unidentified Prototypes 1 | . . . . 1 . . . . Parts Lost 21 | . 1 8 . . . 2 7 3 Power 5 | . . 2 . . . 1 1 1 Propulsion 10 | . . 5 . . . 1 2 2 Utility 4 | . . 1 . . . . 3 . Weapon 2 | . 1 . . . . . 1 . Highest Loss Streak 3 | . 1 2 . . . 2 3 1 To Critical Strikes . | . . . . . . . . . Average Slot Usage (%) 95 | . 99 96 88 88 88 88 96 98 Engine 6 | . 14 9 11 11 11 3 . . Core 3 | . . . . . . 5 8 8 Treads 22 | . 20 20 22 22 22 25 24 22 Leg 2 | . 7 . . . . . 2 4 Device 7 | . 14 11 11 11 11 9 . . Storage 10 | . 14 11 11 11 11 9 9 9 Processor 2 | . . . . . . . 4 9 Protection 6 | . . 9 . . . 8 12 8 Energy Gun 1 | . 8 . . . . . . . Ballistic Gun 3 | . 19 . . . . . . . Impact Weapon 16 | . . 27 22 16 11 9 8 24 Slashing Weapon 10 | . . 4 11 16 22 19 23 9 Peak Build Rating 37 | 9 9 17 15 21 21 29 32 37 Average Rating 20 | 5 8 15 15 17 21 25 28 34 On Entrance 16 | . 9 8 15 15 21 21 29 31 Naked Turns . | . . . . . . . . . Heaviest Build 45 | 15 30 42 35 35 35 38 40 45 Greatest Support 60 | 40 40 40 40 40 40 60 60 60 Greatest Overweight (x) 9 | . 9 3 . . . . . 8 Average Overweight (x) . | . . . . . . . . . Largest Inventory Capacity 15 | 8 15 15 15 15 15 15 15 15 Average Capacity 14 | 6 14 15 15 15 15 15 15 15 Most Carried 15 | 4 15 15 15 15 15 15 15 15 Average Carried 13 | 2 10 14 14 14 14 14 14 14 Final Capacity 15 | 8 15 15 15 15 15 15 15 15 Final Carried 15 | 4 14 15 15 15 15 15 15 14 Class Distribution -------------------- 59% | Mutant 26% | Scavenger-Mutant 13% | Bothacker-Mutant Dominant Class ---------------- Mutant | -10/Materials Mutant | -9/Materials Mutant | -9/Mines Mutant | -9/Exiles Mutant | -8/Mines Scavenger-Mutant | -8/Materials Scavenger-Mutant | -8/Garrison Bothacker-Mutant | -8/Materials Resources | -11 -10 -9 -9 -9 -8 -8 -8 -8 ----------- Run | Yrd Mat Mat Min Exi Min Mat Gar Mat Matter Collected 1396 | 279 395 272 . . 10 50 207 183 Remotely . | . . . . . . . . . Salvage Created 5111 | 78 663 1200 . . 23 227 1436 1484 Parts 252 | 8 52 45 . . 1 15 69 62 Haulers Intercepted 8 | . 2 3 . . . 1 . 2 Recyclers Shooed 1 | . 1 . . . . . . . Parts Field Recycled . | . . . . . . . . . Retrieved Matter . | . . . . . . . . . Parts Self-Destructed . | . . . . . . . . . Prevented . | . . . . . . . . . Kills | -11 -10 -9 -9 -9 -8 -8 -8 -8 ------- Run | Yrd Mat Mat Min Exi Min Mat Gar Mat Combat Hostiles Destroyed 99 | . 13 27 . . . 3 28 28 Melee 75 | . . 20 . . . 3 27 25 Guns 12 | . 12 . . . . . . . AOE 1 | . 1 . . . . . . . Classes Destroyed 15 | 2 6 3 . . . 1 2 1 Worker 2 | . . 2 . . . . . . Builder 3 | . 2 1 . . . . . . Tunneler 2 | 1 . . . . 1 . . . Hauler 8 | . 2 3 . . . 1 . 2 Recycler 1 | 1 . . . . . . . . Operator 5 | . 2 1 . . . 1 . 1 Watcher 3 | . 1 2 . . . . . . Swarmer 10 | . 3 4 . . . . . 3 Grunt 59 | . 10 13 . . . . 18 18 Brawler 3 | . . . . . . . 1 2 Duelist 2 | . . 2 . . . . . . Sentry 18 | . . 8 . . . 2 5 3 Specialist 2 | . . . . . . . . 2 Hunter 1 | . . . . . . 1 . . Programmer 4 | . . . . . . . 4 . Best Kill Streak 5 | 1 5 4 . . 1 2 5 5 Combat Bots Only 5 | . 5 3 . . . 2 5 5 Max Kills in Single Turn 2 | 1 1 1 . . 1 1 1 2 Gunslinging . | . . . . . . . . . Exploded 1 | . 1 . . . . . . . Melee 2 | . . 1 . . . 1 1 2 Uniques/NPCs Destroyed . | . . . . . . . . . Combat | -11 -10 -9 -9 -9 -8 -8 -8 -8 -------- Run | Yrd Mat Mat Min Exi Min Mat Gar Mat Hostile Shots Fired 472 | . 59 197 3 . . 20 98 95 Missed 122 | . 19 50 1 . . 5 21 26 Damage Taken 5048 | 16 550 1869 27 . . 229 1299 1058 Core 769 | . 137 338 10 . . 47 90 147 Absorbed by Shields . | . . . . . . . . . Regen/Repaired (Parts) 132 | . 132 . . . . . . . Core Remaining (%) 52 | 100 45 . . . 13 . . . Volleys Fired 55 | 3 50 . . . . . . 2 Largest 2 | 2 2 . . . . . . 1 Hottest 60 | 60 60 . . . . . . 5 Shots Fired 108 | 6 100 . . . . . . 2 Gun 106 | 6 100 . . . . . . . Cannon . | . . . . . . . . . Launcher . | . . . . . . . . . Special 2 | . . . . . . . . 2 Kinetic 83 | 3 80 . . . . . . . Thermal . | . . . . . . . . . Explosive . | . . . . . . . . . Electromagnetic 23 | 3 20 . . . . . . . Robot Hit Streak 10 | 4 10 . . . . . . 1 Robot Miss Streak 4 | 1 4 . . . . . . 1 Penetration Max . | . . . . . . . . . Secondary Targets 1 | . 1 . . . . . . . Max Gunslinging Chain 1 | . 1 . . . . . . . Shots Hit Robots 339 | 5 66 97 . . 1 12 81 77 Core Hits 118 | 3 37 20 . . . 5 27 26 Critical Kills 1 | . . . . . . . 1 . Critical Parts Destroyed 13 | . . 8 . . . . 1 4 Critical Strikes 28 | . . 10 . . . . 9 9 Smash 14 | . . 8 . . . . 2 4 Sever 14 | . . 2 . . . . 7 5 Melee Attacks 361 | . . 130 . . 1 13 122 95 Impact 144 | . . 101 . . . 1 13 29 Slashing 217 | . . 29 . . 1 12 109 66 Piercing . | . . . . . . . . . Sneak Attacks 24 | . . 11 . . 1 2 1 9 Combat Hostiles 5 | . . 1 . . . . 1 3 Follow-up Attacks 56 | . . 26 . . . 2 15 13 Damage Inflicted 12775 | 90 985 3636 . . 86 639 3563 3776 Guns 942 | 63 879 . . . . . . . Cannons . | . . . . . . . . . Explosions 119 | 27 92 . . . . . . . Melee 11700 | . . 3636 . . 86 639 3563 3776 Ramming 14 | . 14 . . . . . . . Kinetic 773 | 37 736 . . . . . . . Thermal 119 | 27 92 . . . . . . . Explosive . | . . . . . . . . . Electromagnetic 169 | 26 143 . . . . . . . Impact 3522 | . . 2689 . . . 14 124 695 Slashing 8178 | . . 947 . . 86 625 3439 3081 Piercing . | . . . . . . . . . Highest Corruption 6 | . . . . . . . 6 6 Average Corruption 5 | . . . . . . . 4 6 Corruption Purged . | . . . . . . . . . Corruption Blocked . | . . . . . . . . . Effects 63 | . . . . . . . 37 26 Message Errors 10 | . . . . . . . 7 3 Matter Fused 18 | . . . . . . . 13 5 Heat Flow Errors 16 | . . . . . . . 8 8 Energy Discharges 12 | . . . . . . . 5 7 Parts Rejected 1 | . . . . . . . 1 . Data Loss (minor) 3 | . . . . . . . 2 1 Data Loss (major) 2 | . . . . . . . . 2 Alerts 1 | . . . . . . . 1 . Overload Shots . | . . . . . . . . . Overflow Damage 1489 | . 18 785 . . 46 . 141 499 Projectiles . | . . . . . . . . . Explosions 18 | . 18 . . . . . . . Melee 1471 | . . 785 . . 46 . 141 499 Knockbacks 10 | . . 6 . . . . . 4 Impact 10 | . . 6 . . . . . 4 Kinetic . | . . . . . . . . . Secondary . | . . . . . . . . . Self-Inflicted Damage 72 | 16 56 . . . . . . . Shots 2 | 1 1 . . . . . . . Rammed 2 | . 2 . . . . . . . Targets Rammed 2 | . 2 . . . . . . . Kicked . | . . . . . . . . . Crushed . | . . . . . . . . . Highest Temperature 271 | 7 21 16 . . . 6 271 268 Average Temperature 95 | 4 9 10 . . . 5 108 116 Received Heat Transfer 1932 | . 243 735 . . . 72 450 432 Siege Activations . | . . . . . . . . . Robots Corrupted 15 | . . 10 . . . . 1 4 Combat Hostiles 11 | . . 7 . . . . 1 3 Parts Fried 29 | . . 20 . . . . 2 7 Impact Corruptions 41 | . . 30 . . . . 2 9 Robots Melted . | . . . . . . . . . Combat Hostiles . | . . . . . . . . . Parts Melted 1 | . . 1 . . . . . . Heat Transferred 100 | . 100 . . . . . . . Parts Sabotaged . | . . . . . . . . . Parts Stolen . | . . . . . . . . . Parts Stripped . | . . . . . . . . . Power Chain Reactions 2 | 1 1 . . . . . . . Alert | -11 -10 -9 -9 -9 -8 -8 -8 -8 ------- Run | Yrd Mat Mat Min Exi Min Mat Gar Mat Peak Influence 998 | 10 290 601 234 . 5 189 998 885 Initial 466 | . 6 86 234 . . 1 122 466 Average 332 | 5 113 254 126 . 4 128 562 612 Maximum Alert Level 3 | . 1 2 1 . . . 3 3 Low Security (%) 38 | 100 73 37 54 . 100 100 15 . Level 1 23 | . 26 44 45 . . . 8 . Level 2 26 | . . 17 . . . . 44 76 Level 3 10 | . . . . . . . 30 23 Level 4 . | . . . . . . . . . Level 5 . | . . . . . . . . . High Security . | . . . . . . . . . Max Security . | . . . . . . . . . Squads Dispatched 15 | . 5 2 . . . 2 . 6 Investigation 5 | . 2 1 . . . . . 2 Extermination . | . . . . . . . . . Reinforcement 7 | . 3 1 . . . 1 . 2 Assault 2 | . . . . . . . . 2 Garrison 1 | . . . . . . 1 . . Intercept . | . . . . . . . . . Searches Triggered . | . . . . . . . . . Construction Impeded . | . . . . . . . . . Haulers Reinforced . | . . . . . . . . . Active Scanning Responses . | . . . . . . . . . Cargo Convoy Interrupts . | . . . . . . . . . Stealth | -11 -10 -9 -9 -9 -8 -8 -8 -8 --------- Run | Yrd Mat Mat Min Exi Min Mat Gar Mat Distress Signals 6 | . . 4 . . . 1 . 1 Communications Jammed . | . . . . . . . . . Distress Signals . | . . . . . . . . . Times Spotted 147 | . 25 44 3 . . 7 31 37 Peak Tracking Total 5 | . 5 5 2 . . 5 5 5 Tactical Retreats 13 | . 1 7 . . . . 3 2 Traps | -11 -10 -9 -9 -9 -8 -8 -8 -8 ------- Run | Yrd Mat Mat Min Exi Min Mat Gar Mat Traps Triggered 11 | . 4 1 . . . . 1 5 Indirectly . | . . . . . . . . . Trap Hack Attempts . | . . . . . . . . . Triggered . | . . . . . . . . . Disarmed . | . . . . . . . . . Reprogrammed . | . . . . . . . . . Reused . | . . . . . . . . . Traps Extracted . | . . . . . . . . . Installed . | . . . . . . . . . Triggered . | . . . . . . . . . Most Traps Carried 2 | . . . 2 2 2 2 2 2 Machines | -11 -10 -9 -9 -9 -8 -8 -8 -8 ---------- Run | Yrd Mat Mat Min Exi Min Mat Gar Mat Machines Disabled 3 | . 3 . . . . . . . Max in Single Turn 2 | . 2 . . . . . . . Garrison Relay 1 | . . . . . . . 1 . Machines Repaired . | . . . . . . . . . Machines Dismantled . | . . . . . . . . . Machines Sabotaged . | . . . . . . . . . Overloaded Fab Kills . | . . . . . . . . . Hacking | -11 -10 -9 -9 -9 -8 -8 -8 -8 --------- Run | Yrd Mat Mat Min Exi Min Mat Gar Mat Machines Accessed 23 | . 4 9 . . . 1 4 5 Terminals 19 | . 3 8 . . . . 4 4 Fabricators . | . . . . . . . . . Repair Stations 1 | . 1 . . . . . . . Recycling Units . | . . . . . . . . . Scanalyzers 2 | . . 1 . . . . . 1 Garrison Access 1 | . . . . . . 1 . . Total Hacks 71 | . 10 34 . . . 2 11 14 Successful 32 | . 5 22 . . . 1 2 2 Failed 39 | . 5 12 . . . 1 9 12 Catastrophic 8 | . 2 2 . . . . 2 2 Database Lockouts . | . . . . . . . . . Manual 21 | . 3 12 . 1 . . . 5 Terminals 55 | . 8 24 . . . . 11 12 Fabricators . | . . . . . . . . . Repair Stations 2 | . 2 . . . . . . . Recycling Units . | . . . . . . . . . Scanalyzers 12 | . . 10 . . . . . 2 Garrison Access 2 | . . . . . . 2 . . Terminal Hacks 12 | . 3 6 . . . . 2 1 Open Door 1 | . . . . . . . 1 . Branch Access Points 3 | . 1 2 . . . . . . Emergency Access Points 2 | . . 1 . . . . . 1 Repair Station Index 1 | . . 1 . . . . . . Alert Level 1 | . . 1 . . . . . . Locate Traps 1 | . . 1 . . . . . . Registered Components 1 | . 1 . . . . . . . Zone Layout 1 | . 1 . . . . . . . Security Stations 1 | . . . . . . . 1 . Fabricator Hacks . | . . . . . . . . . Repair Station Hacks 2 | . 2 . . . . . . . Scan Component 1 | . 1 . . . . . . . Repair 1 | . 1 . . . . . . . Recycling Unit Hacks . | . . . . . . . . . Scanalyzer 11 | . . 10 . . . . . 1 Insert Component 5 | . . 4 . . . . . 1 Analyze 6 | . . 6 . . . . . . Garrison Access Hacks 1 | . . . . . . 1 . . Unlock Access 1 | . . . . . . 1 . . Unauthorized Hacks 6 | . . 6 . . . . . . Terminals 6 | . . 6 . . . . . . Botnet 5 | . . 5 . . . . . . Operators 1 | . . 1 . . . . . . Fabricators . | . . . . . . . . . Repair Stations . | . . . . . . . . . Recycling Units . | . . . . . . . . . Scanalyzers . | . . . . . . . . . Garrison Access . | . . . . . . . . . Data Cores Recovered . | . . . . . . . . . Used . | . . . . . . . . . Hacking Detections 19 | . 3 6 . . . 1 4 5 Full Trace Events 6 | . . 1 . . . . 2 3 Feedback Events . | . . . . . . . . . Feedback Blocked . | . . . . . . . . . Robot Schematics Acquired . | . . . . . . . . . Robots Built . | . . . . . . . . . Authchips . | . . . . . . . . . Time . | . . . . . . . . . Total Robot Build Rating . | . . . . . . . . . Part Schematics Acquired 3 | . . 3 . . . . . . Parts Built . | . . . . . . . . . Authchips . | . . . . . . . . . Time . | . . . . . . . . . Total Part Build Rating . | . . . . . . . . . Parts Repaired 1 | . 1 . . . . . . . Time 26 | . 26 . . . . . . . Parts Recycled . | . . . . . . . . . Recycled Matter . | . . . . . . . . . Retrieved Matter . | . . . . . . . . . Retrieved Components . | . . . . . . . . . Parts Scanalyzed 3 | . . 3 . . . . . . Part Schematics Acquired 3 | . . 3 . . . . . . Parts Damaged . | . . . . . . . . . Bothacking | -11 -10 -9 -9 -9 -8 -8 -8 -8 ------------ Run | Yrd Mat Mat Min Exi Min Mat Gar Mat Used RIF Installer 1 | . . . . . . . 1 . Robots Hacked 1 | . . . . . . . . 1 Non-combat . | . . . . . . . . . Combat 1 | . . . . . . . . 1 Robot Hacks Applied 1 | . . . . . . . . 1 formatsys_high 1 | . . . . . . . . 1 Relay Couplers Released 9 | . . . . . . . 9 . Machine Destruction 5 | . . . . . . . 5 . Programmers 4 | . . . . . . . 4 . Attached 1 | . . . . . . . . 1 Fabnet Peak Effective % . | . . . . . . . . . Robots Rewired 3 | . . . . . . . 3 . Allies Hacked . | . . . . . . . . . Hacks Repelled . | . . . . . . . . . Allies | -11 -10 -9 -9 -9 -8 -8 -8 -8 -------- Run | Yrd Mat Mat Min Exi Min Mat Gar Mat Total Allies 7 | . . . 3 . . . 3 1 Largest Group 3 | . . . 3 2 2 2 3 1 Highest-Rated Group 71 | . . . 40 32 32 32 71 18 Highest-Rated Ally 31 | . . . 16 16 16 16 31 18 Total Orders . | . . . . . . . . . Ally Attacks 45 | . . . 9 . . 24 5 7 Total Damage 530 | . . . 62 . . 208 64 196 Kills 8 | . . . 2 . . 5 1 . Allies Corrupted . | . . . . . . . . . Allies Melted 1 | . . . . . . . 1 . Intel | -11 -10 -9 -9 -9 -8 -8 -8 -8 ------- Run | Yrd Mat Mat Min Exi Min Mat Gar Mat Robot Analysis Total . | . . . . . . . . . Derelict Logs Recovered 1 | . . . 1 . . . . . Drone Launches . | . . . . . . . . . Drone Recoveries . | . . . . . . . . . Exploration | -11 -10 -9 -9 -9 -8 -8 -8 -8 ------------- Run | Yrd Mat Mat Min Exi Min Mat Gar Mat Turns Passed 7809 | 111 1313 1898 871 344 87 263 1733 1189 Spaces Moved 3662 | 58 631 786 543 214 53 137 819 421 Core 7 | 4 1 . . . . . . 2 Treads 3504 | 54 481 784 543 214 53 137 819 419 Legs 151 | . 149 2 . . . . . . Wheels . | . . . . . . . . . Hover . | . . . . . . . . . Flight . | . . . . . . . . . Fastest Speed 50 | 50 160 160 160 160 160 160 160 160 Average Speed 167 | 152 167 184 160 160 160 160 160 172 Slowest Speed 500 | 160 500 330 160 160 160 160 160 450 Overloaded Moves . | . . . . . . . . . Propulsion Burnouts . | . . . . . . . . . Robots Hopped . | . . . . . . . . . Cave-ins Triggered . | . . . . . . . . . Exploration Rate (%) 54 | 5 99 73 98 61 19 13 81 39 Regions Visited 8 Branch Regions 3 Pre-discovered Areas . | . . . . . . . . . Known Exits Taken 2 | . . 1 . . . 1 . . Unknown Exits Taken 5 | 1 1 . 1 1 1 . . . Scrap Searched 3 | . . . 2 . 1 . . . Spaces Dug 9 | . . . . . . . 8 1 Terrain Destroyed 17 | 5 3 . . . . . 8 1 Melee 9 | . . . . . . . 8 1 Projectile . | . . . . . . . . . AOE 8 | 5 3 . . . . . . . Terrain Rammed . | . . . . . . . . . Walls Destroyed . | . . . . . . . . . Machines Disabled . | . . . . . . . . . Actions | -11 -10 -9 -9 -9 -8 -8 -8 -8 --------- Run | Yrd Mat Mat Min Exi Min Mat Gar Mat Total 4845 | 71 784 1053 546 216 55 173 1146 801 Wait 654 | . 78 108 . . . 8 182 278 Move 3653 | 57 630 785 542 213 52 136 817 421 Hop . | . . . . . . . . . Pick Up 54 | 4 9 15 2 . 1 6 14 3 Fast Attach 37 | 7 5 9 . 1 . 4 6 5 Attach 21 | . 2 10 . . . 2 4 3 Detach 13 | . 4 6 . 1 . . 1 1 Swap 23 | . 2 8 . . . 1 4 8 Drop 60 | . 2 21 2 1 1 6 16 11 Fire 55 | 3 50 . . . . . . 2 Melee 262 | . . 91 . . 1 10 91 69 Ram . | . . . . . . . . . Kick . | . . . . . . . . . Crush 2 | . 2 . . . . . . . Escape Stasis . | . . . . . . . . . Rewire 11 | . . . . . . . 11 . Trap . | . . . . . . . . . Miscellaneous . | . . . . . . . . . Route ------- -11/Scrapyard -10/Materials (discovered 4 exits: *Mat x3 / *Min) -9/Materials (discovered 3 exits: *Mat x2 / *Min) -9/Mines (discovered 3 exits: *Mat x2 / *Exi) -9/Exiles (discovered 2 exits: [*Min x2]) -8/Mines -8/Materials -8/Garrison (discovered 3 exits: *Mat x3) -8/Materials History --------- Turn | Location | Event 2 | -11/Scrapyard | Met Revision 17 24 | -11/Scrapyard | Discovered new exit (range 16) 112 | -11/Scrapyard | Entered Materials 124 | -10/Materials | Identified exit to Mines 328 | -10/Materials | Build established: Mutant 351 | -10/Materials | Discovered new exit (range 11) 599 | -10/Materials | Discovered new exit (range 16) 955 | -10/Materials | Discovered new exit (range 8) 1260 | -10/Materials | Repaired Lgt. Treads 1292 | -10/Materials | Core integrity fell below 50% 1425 | -10/Materials | Entered another Materials area 1425 | -9/Materials | Evolved 2 slots: Utility x1, Weapon x1 1469 | -9/Materials | Identified exit to Mines 2130 | -9/Materials | Core integrity fell below 50% 2557 | -9/Materials | Discovered new exit (range 5) 3139 | -9/Materials | Discovered new exit (range 11) 3212 | -9/Materials | Core integrity fell below 20% 3323 | -9/Materials | Entered Mines 3367 | -9/Mines | Found a hidden stash of uninstalled traps 3421 | -9/Mines | Deemed a non-threat by the Exiles lab entrance 3421 | -9/Mines | Discovered new exit (range 5) 3587 | -9/Mines | Assisted by bots powering up and referring to "LRC-V3" 3658 | -9/Mines | Learned Materials stockpile data 3851 | -9/Mines | Discovered new exit (range 12) 3970 | -9/Mines | Discovered new exit (range 8) 4194 | -9/Mines | Entered Exiles 4194 | -9/Exiles | Accompanied by 2 allies 4220 | -9/Exiles | Discovered new exit (range 15) 4234 | -9/Exiles | Met 8R-AWN 4260 | -9/Exiles | Met EX-HEX 4305 | -9/Exiles | Met EX-BIN 4324 | -9/Exiles | Aligned with FarCom system 4326 | -9/Exiles | Given EX-Vault access code 4364 | -9/Exiles | Opened EX-Vault 4368 | -9/Exiles | Found Prototype Slashing Weapon 4368 | -9/Exiles | Identified Longsword +1 4399 | -9/Exiles | Warned to stay clear of 0b10 Research branches 4432 | -9/Exiles | Exiles lab attacked by MAIN.C 4525 | -9/Exiles | Discovered new exit (range 10) 4538 | -9/Exiles | Left Exiles lab with Longsword +1 4538 | -9/Exiles | Entered Mines 4538 | -8/Mines | Accompanied by 2 allies 4588 | -8/Mines | Discovered new exit (range 15) 4625 | -8/Mines | Entered Materials 4625 | -8/Materials | Accompanied by 2 allies 4625 | -8/Materials | Evolved 2 slots: Propulsion x1, Weapon x1 4636 | -8/Materials | Garrison activated, responded to threat 4886 | -8/Materials | Identified exit to Garrison 4888 | -8/Materials | Entered Garrison 5020 | -8/Garrison | Build established: Scavenger-Mutant 5074 | -8/Garrison | Triggered checkpoint 5541 | -8/Garrison | Discovered new exit (range 9) 5554 | -8/Garrison | Triggered checkpoint 5687 | -8/Garrison | Garrison Relay disabled 5906 | -8/Garrison | Triggered checkpoint 6017 | -8/Garrison | Lost 3 parts (1n1u1w) 6023 | -8/Garrison | Discovered new exit (range 12) 6280 | -8/Garrison | Triggered checkpoint 6476 | -8/Garrison | Triggered checkpoint 6502 | -8/Garrison | Installed Relay Interface Framework 6593 | -8/Garrison | Learned Materials security intel 6600 | -8/Garrison | Discovered new exit (range 12) 6621 | -8/Garrison | Entered Materials 7087 | -8/Materials | Build established: Bothacker-Mutant 7421 | -8/Materials | First assault squad dispatched 7702 | -8/Materials | Core integrity fell below 50% 7810 | -8/Materials | Self-destructed Last Messages --------------- 07793_ Massive razor-sharp blades shoot up from within the floor. 07793_ Lgt. Nuclear Core severed. 07794_ Triggered Blade Trap. 07794_ Massive razor-sharp blades shoot up from within the floor. 07794_ Powered Hammer severed. 07796_ Triggered Blade Trap. 07796_ Massive razor-sharp blades shoot up from within the floor. 07796_ Lgt. Treads severed. 07798_ Rogue 3a suffers critical hit (Burn). 07799_ System corrupted: Energy discharge (-23). 07799_ Triggered Blade Trap. 07799_ Massive razor-sharp blades shoot up from within the floor. 07799_ Lgt. Treads severed. 07806_ K-01 Serf collects debris. 07808_ Rogue 3a destroyed. 07809_ K-01 Serf collects debris. Map ----- +----------------------------------------------------+ | ?????????????????????????????????????????????????? | | ?????????????????????????????????????????????????? | | ?????????????????????????????????????????????????? | | ?????????????????????????????????????????????????? | | ?????????????????????????????????????????????????? | | ?????????????????????????????????????????????????? | | ?????????????????????????????????????????????????? | | ?????????????????????????????????????????????????? | | ?????????????????????????????????????????????????? | | ?????????????????????????????????????????????????? | | ?????????????????????????????????????????????????? | | ?????????????????????????????????????????????????? | | ?????????????????????????????????????????????????? | | ?????????????????????????????????????????????????? | | ?????????????????????????????????????????????????? | | ?????????????????????????????????????????????????? | | ?????????????????????????????????????????????????? | | ?????????????????????????????????????????????????? | | ?????????????????#??????????????????????????? ??? | | ?????????????????# ????????????????????????? # | | ?????????????????# ???????????????????????? # | | ???????????####### ########??????????????? # | | ???????? /*u #??????????????? # | | ???????? /= #######??????### # | | ???????? == %gm ? | | ?????????##########+#####@ #########????# ? | | ????????????????????????#u #????????????# """ | | ????????????????????????# #???########## """ | | ????????????????????????# % #???# # """ | | ????????????????????????# ##### """ # | | ????????????????????????# %+ """ # = | | ????????????????????????# ##### """ # | | ????????????????????????###k##### + | | ????????????????????????# T !## "" "" # | | ????????????###########?# ## ""S"" # #### | | ????######### #?# ## """" # #???? | | ????# +! #?# !% ## # #???? | | ????# ####### =b #?####+############# #???? | | ????# T#????# ###### %= !% % #???? | | ????# ##????# / * ==[ #???? | | ????# #?????# """ """ ###### h #???? | | ????# #?????# """ """ #????####+##############??# | | ????# #?????# """ """ #?????? !??????????????# | | ??###+###########+#####?????# #????????????# | | ??# #???# +?????????# """ #????????????# | | ??# """ #???# #?????????# """ #????????????# | | ??#!""" #???# +?????????# """ #????????????# | | ??#%""" #???# #?????????# #????????????# | | ?##= #???# #?????????########????????????# | | ##[*[ [ #???#! #?????????????????????????????# | +----------------------------------------------------+ Best States ------------- Heat Dissipation 31 Energy Generation 14 Energy Capacity 265 Matter Stores 300 Matter Capacity 300 Sight Range 16 Terrain Scan Range 16 Terrain Scan Density 10 Armor Coverage 300 Evasion (%) 40 Target Analysis 5 Recoil Reduction 3 Relay Coupler Types 1 Relay Coupler Value 21 Item Schematics ----------------- Structural Scanner | -9/Materials | Scanalyzed Katana | -9/Materials | Scanalyzed Lgt. Treads | -9/Materials | Scanalyzed Robot Schematics ------------------ None Fabricated ------------ Nothing Alien Tech Used ----------------- None Achievements -------------- Assimilation Complete Challenges ------------ None Game ------ Seed MetaChromaticRigger Manual? 0 Play Time 01:10:59 Cumulative 43.1 hours Start 2024.08.20 @ 10:39:47 End 2024.08.20 @ 11:49:47 Sessions 1 Manual Loads 0 Difficulty Rogue Special Mode None Game No. 56 Rogue 56 Adventurer 0 Explorer 0 Win Type - Total 0 Types 0/0/0/0/0/0/0/0/0 Lore% 14 Gallery% 24 Achievement% 23 Wizard Run 0 Options --------- Layout 1 ASCII 0 Keyboard 0 Movement Numpad Keybinds 0 Fullscreen 1 Font 32/SmallcapsGlow Map View 50x40 Zoom Use 1% Tactical HUD 1 Map Filters NONE Filters NONE Steam 1 RUN: da963be9-4089-456d-b16f-92db5d64a888